[Event "Irish Championship 2026"]
[Site "Talbot Hotel Stillorgan, Co.Dublin, IE"]
[Date "2026.08.06"]
[Round "6"]
[White "Joe Ryan"]
[Black "Hushpit, Lukian"]
[Result "1-0"]
[Board "65"]
[TimeControl "40/5400+30:1800+30"]
[BlackFideId "14189208"]
[WhiteElo "2159"]
[BlackElo "2088"]
[WhiteClock "0:15:00"]
[BlackClock "0:01:32"]
[Variant "Standard"]
[EndDate "2026.08.06"]
[EndTime "19:26:13"]

1. e4 {[%clk 1:30:27]}  e5 {[%clk 1:30:55]} 2. Nf3 {[%clk 1:30:47]}  Nc6 {[%clk 1:31:21]} 3. Bb5 {[%clk 1:31:11]}  a6 {[%clk 1:31:43]}
4. Ba4 {[%clk 1:31:29]}  Nf6 {[%clk 1:32:08]} 5. O-O {[%clk 1:31:45]}  Be7 {[%clk 1:32:30]} 6. Re1 {[%clk 1:31:57]}  b5 {[%clk 1:32:54]}
7. Bb3 {[%clk 1:32:21]}  d6 {[%clk 1:33:11]} 8. c3 {[%clk 1:32:38]}  O-O {[%clk 1:33:37]} 9. h3 {[%clk 1:32:54]}  h6 {[%clk 1:33:13]}
10. d4 {[%clk 1:33:02]}  Re8 {[%clk 1:33:31]} 11. Nbd2 {[%clk 1:32:20]}  Bf8 {[%clk 1:31:51]} 12. Nf1 {[%clk 1:31:53]}  Bb7 {[%clk 1:29:38]}
13. Ng3 {[%clk 1:31:39]}  Na5 {[%clk 1:23:05]} 14. Bc2 {[%clk 1:31:21]}  c5 {[%clk 1:23:28]} 15. d5 {[%clk 1:31:06]}  Nc4 {[%clk 1:23:48]}
16. b3 {[%clk 1:31:04]}  Nb6 {[%clk 1:24:08]} 17. Be3 {[%clk 1:30:23]}  g6 {[%clk 1:21:41]} 18. a4 {[%clk 1:30:14]}  bxa4 {[%clk 1:21:32]}
19. bxa4 {[%clk 1:30:38]}  Rb8 {[%clk 1:19:08]} 20. Bd3 {[%clk 1:26:10]}  Bg7 {[%clk 1:17:34]} 21. c4 {[%clk 1:24:55]}  Qc7 {[%clk 1:12:31]}
22. Rb1 {[%clk 1:23:37]}  Nbd7 {[%clk 1:11:40]} 23. Re2 {[%clk 1:23:04]}  a5 {[%clk 1:05:41]} 24. Reb2 {[%clk 1:22:09]}  Ba6 {[%clk 1:04:52]}
25. Rxb8 {[%clk 1:21:05]}  Rxb8 {[%clk 1:04:57]} 26. Rxb8+ {[%clk 1:21:29]}  Qxb8 {[%clk 1:03:35]} 27. Bd2 {[%clk 1:21:18]}  Qb6 {[%clk 1:03:35]}
28. Bc3 {[%clk 1:16:40]}  Nb8 {[%clk 0:59:41]} 29. Nd2 {[%clk 1:04:47]}  Bc8 {[%clk 0:53:51]} 30. Qb1 {[%clk 0:59:38]}  Qc7 {[%clk 0:44:03]}
31. Qb5 {[%clk 0:56:34]}  Bd7 {[%clk 0:40:20]} 32. Bxa5 {[%clk 0:50:09]}  Qa7 {[%clk 0:37:04]} 33. Qb6 {[%clk 0:47:54]}  Qxb6 {[%clk 0:37:12]}
34. Bxb6 {[%clk 0:48:17]}  Na6 {[%clk 0:35:17]} 35. Bc2 {[%clk 0:44:59]}  Kf8 {[%clk 0:34:31]} 36. Ne2 {[%clk 0:44:32]}  Ke7 {[%clk 0:32:30]}
37. Nc3 {[%clk 0:44:39]}  h5 {[%clk 0:30:00]} 38. Kf1 {[%clk 0:43:58]}  Bh6 {[%clk 0:29:49]} 39. Ke2 {[%clk 0:44:06]}  Ne8 {[%clk 0:23:13]}
40. Nb5 {[%clk 0:40:32]}  f5 {[%clk 0:21:07]} 41. f3 {[%clk 0:40:44]}  Nb4 {[%clk 0:19:05]} 42. Bb1 {[%clk 0:40:15]}  f4 {[%clk 0:15:06]}
43. a5 {[%clk 0:39:35]}  g5 {[%clk 0:14:33]} 44. Bd3 {[%clk 0:39:08]}  g4 {[%clk 0:14:33]} 45. hxg4 {[%clk 0:39:20]}  hxg4 {[%clk 0:14:59]}
46. fxg4 {[%clk 0:37:57]}  Bxg4+ {[%clk 0:15:12]} 47. Nf3 {[%clk 0:38:16]}  Bg5 {[%clk 0:14:06]} 48. Kd2 {[%clk 0:37:16]}  Bf6 {[%clk 0:14:30]}
49. Be2 {[%clk 0:36:29]}  Bc8 {[%clk 0:14:04]} 50. Nh2 {[%clk 0:36:26]}  Bg5 {[%clk 0:13:25]} 51. Bf3 {[%clk 0:35:13]}  Na6 {[%clk 0:12:51]}
52. Kc3 {[%clk 0:35:28]}  Nf6 {[%clk 0:11:38]} 53. Na7 {[%clk 0:34:17]}  Bb7 {[%clk 0:06:07]} 54. Ng4 {[%clk 0:32:28]}  Ne8 {[%clk 0:05:28]}
55. Nf2 {[%clk 0:32:21]}  Bh4 {[%clk 0:05:20]} 56. Nd3 {[%clk 0:32:35]}  Nf6 {[%clk 0:05:17]} 57. Kb3 {[%clk 0:32:29]}  Kd7 {[%clk 0:30:14]}
58. Ka4 {[%clk 1:01:38]}  Bg3 {[%clk 0:30:41]} 59. Kb5 {[%clk 1:01:02]}  Nb8 {[%clk 0:30:38]} 60. Ka4 {[%clk 1:00:37]}  Na6 {[%clk 0:25:47]}
61. Nb5 {[%clk 0:59:30]}  Bh4 {[%clk 0:25:41]} 62. Nc3 {[%clk 0:59:27]}  Bg3 {[%clk 0:24:21]} 63. Ne2 {[%clk 0:59:38]}  Bh4 {[%clk 0:24:23]}
64. Ng1 {[%clk 0:59:42]}  Nb8 {[%clk 0:19:02]} 65. Nh3 {[%clk 0:59:28]}  Ba6 {[%clk 0:19:18]} 66. Kb3 {[%clk 0:59:48]}  Kc8 {[%clk 0:18:07]}
67. Nxc5 {[%clk 0:51:59]}  dxc5 {[%clk 0:14:33]} 68. Bxc5 {[%clk 0:52:17]}  Nbd7 {[%clk 0:12:14]} 69. Bb4 {[%clk 0:50:41]}  Kc7 {[%clk 0:12:22]}
70. Kc3 {[%clk 0:45:42]}  Be1+ {[%clk 0:11:49]} 71. Kb3 {[%clk 0:46:03]}  Bh4 {[%clk 0:12:12]} 72. c5 {[%clk 0:41:53]}  Bb5 {[%clk 0:08:58]}
73. c6 {[%clk 0:41:45]}  Nb8 {[%clk 0:09:00]} 74. Be7 {[%clk 0:41:49]}  Na6 {[%clk 0:06:36]} 75. Ng1 {[%clk 0:41:11]}  Bg5 {[%clk 0:06:05]}
76. Nh3 {[%clk 0:40:15]}  Bh4 {[%clk 0:06:29]} 77. Ng1 {[%clk 0:34:24]}  Bg5 {[%clk 0:06:48]} 78. Ne2 {[%clk 0:26:41]}  Nh7 {[%clk 0:04:56]}
79. Ba3 {[%clk 0:26:49]}  Bf6 {[%clk 0:04:05]} 80. Nc3 {[%clk 0:26:41]}  Bf1 {[%clk 0:03:59]} 81. Ka4 {[%clk 0:26:26]}  Ng5 {[%clk 0:03:37]}
82. Nb5+ {[%clk 0:26:40]}  Kd8 {[%clk 0:03:26]} 83. d6 {[%clk 0:25:01]}  Nxf3 {[%clk 0:03:04]} 84. gxf3 {[%clk 0:23:52]}  Be2 {[%clk 0:02:06]}
85. Nc3 {[%clk 0:23:54]}  Bxf3 {[%clk 0:01:56]} 86. Kb5 {[%clk 0:24:11]}  Nb8 {[%clk 0:01:35]} 87. a6 {[%clk 0:20:59]}  Nxa6 {[%clk 0:01:40]}
88. Kxa6 {[%clk 0:21:17]}  Bg4 {[%clk 0:01:23]} 89. Bc5 {[%clk 0:19:17]}  Bh4 {[%clk 0:01:03]} 90. Bb6+ {[%clk 0:18:49]}  Kc8 {[%clk 0:01:27]}
91. Nb5 {[%clk 0:17:00]}  Kb8 {[%clk 0:00:50]} 92. d7 {[%clk 0:16:47]}  Bxd7 {[%clk 0:00:51]} 93. cxd7 {[%clk 0:16:59]}  f3 {[%clk 0:01:20]}
94. Nd6 {[%clk 0:14:50]}  Bd8 {[%clk 0:00:39]} 95. Bxd8 {[%clk 0:14:27]}  f2 {[%clk 0:01:06]} 96. Kb6 {[%clk 0:14:47]}  f1=Q {[%clk 0:00:33]}
97. Bc7+ {[%clk 0:15:09]}  Ka8 {[%clk 0:01:32]} 98. d8=Q# {[%clk 0:15:00]} 1-0

[Event "Irish Championship 2026"]
[Site "Talbot Hotel Stillorgan, Co.Dublin, IE"]
[Date "2026.08.06"]
[Round "6"]
[White "Oisin O'Cuilleanain"]
[Black "Andrey A. Ivanov"]
[Result "0-1"]
[Board "66"]
[TimeControl "40/5400+30:1800+30"]
[WhiteElo "2128"]
[BlackElo "2085"]
[WhiteClock "0:04:48"]
[BlackClock "0:03:51"]
[Variant "Standard"]
[EndDate "2026.08.06"]
[EndTime "17:45:06"]

1. e4 {[%clk 1:30:53]}  e6 {[%clk 1:30:47]} 2. d3 {[%clk 1:31:13]}  d5 {[%clk 1:30:58]} 3. Qe2 {[%clk 1:31:36]}  Be7 {[%clk 1:21:56]}
4. Nf3 {[%clk 1:31:48]}  Nf6 {[%clk 1:19:38]} 5. g3 {[%clk 1:31:56]}  a5 {[%clk 1:19:06]} 6. a4 {[%clk 1:30:09]}  O-O {[%clk 1:02:24]}
7. Bg2 {[%clk 1:30:34]}  h6 {[%clk 1:02:02]} 8. O-O {[%clk 1:30:29]}  Bd7 {[%clk 0:57:45]} 9. Rd1 {[%clk 1:24:57]}  c5 {[%clk 0:49:59]}
10. Ne5 {[%clk 1:15:31]}  Nc6 {[%clk 0:47:46]} 11. Nxd7 {[%clk 1:12:24]}  Qxd7 {[%clk 0:47:56]} 12. c3 {[%clk 1:12:09]}  Rfd8 {[%clk 0:40:03]}
13. Re1 {[%clk 1:04:35]}  dxe4 {[%clk 0:36:36]} 14. dxe4 {[%clk 1:04:59]}  Ne5 {[%clk 0:36:48]} 15. Be3 {[%clk 0:44:52]}  Nd3 {[%clk 0:34:39]}
16. Rf1 {[%clk 0:43:11]}  Ra6 {[%clk 0:26:22]} 17. Na3 {[%clk 0:35:14]}  Qxa4 {[%clk 0:24:37]} 18. Rfd1 {[%clk 0:34:39]}  Rad6 {[%clk 0:22:21]}
19. b3 {[%clk 0:27:55]}  Qd7 {[%clk 0:18:20]} 20. Kf1 {[%clk 0:24:26]}  b5 {[%clk 0:15:06]} 21. c4 {[%clk 0:22:06]}  Qc8 {[%clk 0:10:44]}
22. Nxb5 {[%clk 0:19:04]}  R6d7 {[%clk 0:11:13]} 23. Rd2 {[%clk 0:18:14]}  Nb4 {[%clk 0:10:21]} 24. e5 {[%clk 0:16:22]}  Ng4 {[%clk 0:09:08]}
25. Qxg4 {[%clk 0:13:30]}  Rxd2 {[%clk 0:09:37]} 26. Bxh6 {[%clk 0:11:35]}  g6 {[%clk 0:07:42]} 27. Be4 {[%clk 0:10:55]}  Bf8 {[%clk 0:06:06]}
28. Bxd2 {[%clk 0:10:36]}  Rxd2 {[%clk 0:06:35]} 29. Rxa5 {[%clk 0:08:48]}  Nc6 {[%clk 0:03:27]} 30. Ra1 {[%clk 0:08:21]}  Bg7 {[%clk 0:03:29]}
31. Nd6 {[%clk 0:07:25]}  Rxd6 {[%clk 0:03:45]} 32. exd6 {[%clk 0:05:49]}  Bxa1 {[%clk 0:04:14]} 33. Qd1 {[%clk 0:06:09]}  Bd4 {[%clk 0:04:30]}
34. b4 {[%clk 0:06:24]}  Nxb4 {[%clk 0:04:21]} 35. Qa4 {[%clk 0:06:49]}  Qd8 {[%clk 0:04:01]} 36. d7 {[%clk 0:06:21]}  Kf8 {[%clk 0:04:14]}
37. Bb7 {[%clk 0:05:38]}  Ke7 {[%clk 0:03:49]} 38. Bc8 {[%clk 0:06:00]}  Qc7 {[%clk 0:03:43]} 39. Qd1 {[%clk 0:04:32]}  Nc6 {[%clk 0:03:54]}
40. Qg4 {[%clk 0:04:40]}  Nb8 {[%clk 0:03:32]} 41. d8=Q+ {[%clk 0:02:07]}  Kxd8 {[%clk 0:01:44]} 42. Bxe6 {[%clk 0:02:32]}  fxe6 {[%clk 0:02:12]}
43. Qxe6 {[%clk 0:02:51]}  Qc6 {[%clk 0:02:25]} 44. Qg8+ {[%clk 0:03:14]}  Kc7 {[%clk 0:02:51]} 45. Qf7+ {[%clk 0:03:32]}  Nd7 {[%clk 0:03:02]}
46. h4 {[%clk 0:03:54]}  Qh1+ {[%clk 0:03:16]} 47. Ke2 {[%clk 0:04:20]}  Qe4+ {[%clk 0:03:30]} 48. Kf1 {[%clk 0:04:48]}  Qf5 {[%clk 0:03:51]}
49. Ke2 {[%clk 0:04:41]} 0-1

[Event "Irish Championship 2026"]
[Site "Talbot Hotel Stillorgan, Co.Dublin, IE"]
[Date "2026.08.06"]
[Round "6"]
[White "Harding, Tim D"]
[Black "Daly, Colm"]
[Result "0-1"]
[Board "67"]
[TimeControl "40/5400+30:1800+30"]
[WhiteFideId "2500256"]
[BlackFideId "2500434"]
[WhiteElo "2004"]
[BlackElo "2182"]
[WhiteTitle "CM"]
[BlackTitle "FM"]
[WhiteClock "0:12:08"]
[BlackClock "0:30:05"]
[Variant "Standard"]
[EndDate "2026.08.06"]
[EndTime "17:03:57"]

1. c4 {[%clk 1:30:55]}  g6 {[%clk 1:16:50]} 2. Nc3 {[%clk 1:31:13]}  Bg7 {[%clk 1:17:09]} 3. d4 {[%clk 1:31:32]}  d6 {[%clk 1:17:32]}
4. e4 {[%clk 1:31:50]}  Nf6 {[%clk 1:17:25]} 5. Nf3 {[%clk 1:32:09]}  Bg4 {[%clk 1:17:44]} 6. Be2 {[%clk 1:31:27]}  a5 {[%clk 1:15:43]}
7. Be3 {[%clk 1:30:39]}  Nc6 {[%clk 1:12:29]} 8. e5 {[%clk 1:16:45]}  dxe5 {[%clk 1:09:47]} 9. Nxe5 {[%clk 1:13:25]}  Bxe2 {[%clk 1:08:39]}
10. Nxc6 {[%clk 1:09:54]}  Bxd1 {[%clk 1:08:38]} 11. Nxd8 {[%clk 1:10:22]}  Rxd8 {[%clk 1:08:50]} 12. Rxd1 {[%clk 1:10:30]}  Ng4 {[%clk 1:06:44]}
13. Ke2 {[%clk 1:06:25]}  O-O {[%clk 1:01:30]} 14. h3 {[%clk 0:59:56]}  Nh6 {[%clk 0:59:09]} 15. Rd3 {[%clk 0:58:28]}  e6 {[%clk 0:57:46]}
16. Rhd1 {[%clk 0:57:58]}  Nf5 {[%clk 0:57:27]} 17. b3 {[%clk 0:41:05]}  Rfe8 {[%clk 0:54:24]} 18. Ne4 {[%clk 0:37:57]}  b6 {[%clk 0:53:41]}
19. g4 {[%clk 0:34:09]}  Nxe3 {[%clk 0:53:04]} 20. fxe3 {[%clk 0:32:01]}  f5 {[%clk 0:49:34]} 21. Ng5 {[%clk 0:29:30]}  h6 {[%clk 0:47:07]}
22. Nf3 {[%clk 0:29:56]}  Kf7 {[%clk 0:47:22]} 23. Rg1 {[%clk 0:27:27]}  Bf6 {[%clk 0:44:43]} 24. Rdd1 {[%clk 0:27:11]}  Rg8 {[%clk 0:41:40]}
25. g5 {[%clk 0:25:31]}  hxg5 {[%clk 0:41:25]} 26. Nxg5+ {[%clk 0:25:54]}  Bxg5 {[%clk 0:40:22]} 27. Rxg5 {[%clk 0:26:18]}  Rh8 {[%clk 0:40:42]}
28. Rdg1 {[%clk 0:26:11]}  Rdg8 {[%clk 0:40:51]} 29. R5g3 {[%clk 0:26:05]}  Rh4 {[%clk 0:38:52]} 30. Kf3 {[%clk 0:25:20]}  Kf6 {[%clk 0:38:50]}
31. Kg2 {[%clk 0:21:48]}  Re4 {[%clk 0:38:48]} 32. Rf1 {[%clk 0:21:25]}  Rd8 {[%clk 0:37:17]} 33. Rf2 {[%clk 0:16:11]}  g5 {[%clk 0:31:09]}
34. Kf3 {[%clk 0:15:06]}  Rh8 {[%clk 0:31:21]} 35. Rfg2 {[%clk 0:14:23]}  Rh5 {[%clk 0:31:32]} 36. Rd2 {[%clk 0:12:40]}  Reh4 {[%clk 0:30:25]}
37. d5 {[%clk 0:11:45]}  Rxh3 {[%clk 0:30:15]} 38. dxe6 {[%clk 0:11:20]}  g4+ {[%clk 0:29:24]} 39. Kf4 {[%clk 0:11:40]}  Rxg3 {[%clk 0:29:42]}
40. Kxg3 {[%clk 0:12:08]}  Rh3+ {[%clk 0:30:05]} 0-1

[Event "Irish Championship 2026"]
[Site "Talbot Hotel Stillorgan, Co.Dublin, IE"]
[Date "2026.08.06"]
[Round "6"]
[White "Murray, Benjamin"]
[Black "Jason Liu"]
[Result "1/2-1/2"]
[Board "68"]
[TimeControl "40/5400+30:1800+30"]
[WhiteFideId "2512963"]
[WhiteElo "2080"]
[BlackElo "2161"]
[WhiteClock "0:07:34"]
[BlackClock "0:03:03"]
[Variant "Standard"]
[EndDate "2026.08.06"]
[EndTime "19:22:56"]

1. e4 {[%clk 1:30:54]}  e6 {[%clk 1:30:57]} 2. d4 {[%clk 1:31:13]}  d5 {[%clk 1:31:24]} 3. e5 {[%clk 1:31:35]}  c5 {[%clk 1:31:51]}
4. c3 {[%clk 1:32:01]}  Nc6 {[%clk 1:32:07]} 5. Nf3 {[%clk 1:32:25]}  Qb6 {[%clk 1:32:27]} 6. a3 {[%clk 1:32:46]}  Nh6 {[%clk 1:32:36]}
7. Bd3 {[%clk 1:32:29]}  cxd4 {[%clk 1:32:31]} 8. O-O {[%clk 1:32:53]}  Nf5 {[%clk 1:22:53]} 9. b4 {[%clk 1:32:24]}  a6 {[%clk 1:18:01]}
10. Bxf5 {[%clk 1:29:33]}  exf5 {[%clk 1:18:25]} 11. cxd4 {[%clk 1:28:43]}  Be6 {[%clk 1:17:48]} 12. Nc3 {[%clk 1:26:51]}  Be7 {[%clk 1:16:30]}
13. Be3 {[%clk 1:24:27]}  O-O {[%clk 1:15:13]} 14. Rc1 {[%clk 1:21:53]}  Rac8 {[%clk 1:13:52]} 15. Na4 {[%clk 1:19:59]}  Qa7 {[%clk 1:11:57]}
16. Qd3 {[%clk 1:14:35]}  h6 {[%clk 1:03:06]} 17. h4 {[%clk 1:11:09]}  b6 {[%clk 0:53:34]} 18. Rc3 {[%clk 0:55:08]}  Qb7 {[%clk 0:48:24]}
19. Rfc1 {[%clk 0:52:24]}  Bd7 {[%clk 0:45:13]} 20. Nb2 {[%clk 0:43:11]}  Na7 {[%clk 0:43:04]} 21. Qd2 {[%clk 0:32:16]}  Rxc3 {[%clk 0:35:30]}
22. Rxc3 {[%clk 0:31:20]}  Rc8 {[%clk 0:35:18]} 23. Rxc8+ {[%clk 0:30:32]}  Qxc8 {[%clk 0:35:33]} 24. a4 {[%clk 0:30:32]}  Nc6 {[%clk 0:33:17]}
25. Nd3 {[%clk 0:28:23]}  Qf8 {[%clk 0:29:15]} 26. b5 {[%clk 0:22:55]}  axb5 {[%clk 0:28:52]} 27. axb5 {[%clk 0:23:18]}  Na5 {[%clk 0:27:38]}
28. Nf4 {[%clk 0:21:55]}  Be6 {[%clk 0:25:16]} 29. h5 {[%clk 0:18:24]}  Qe8 {[%clk 0:17:15]} 30. Qd3 {[%clk 0:10:14]}  Nc4 {[%clk 0:16:00]}
31. Qb3 {[%clk 0:10:04]}  Qd7 {[%clk 0:14:12]} 32. Bc1 {[%clk 0:08:55]}  Qa7 {[%clk 0:13:22]} 33. Bb2 {[%clk 0:04:53]}  Qa5 {[%clk 0:12:23]}
34. Kh2 {[%clk 0:02:38]}  Nd2 {[%clk 0:03:04]} 35. Qd3 {[%clk 0:00:47]}  Nxf3+ {[%clk 0:02:15]} 36. gxf3 {[%clk 0:01:12]}  Qa4 {[%clk 0:02:02]}
37. Kg2 {[%clk 0:00:40]}  Qb4 {[%clk 0:02:13]} 38. Qe2 {[%clk 0:00:41]}  Qb3 {[%clk 0:02:22]} 39. Nxe6 {[%clk 0:00:37]}  fxe6 {[%clk 0:02:50]}
40. Bc1 {[%clk 0:00:52]}  Qb1 {[%clk 0:00:44]} 41. Be3 {[%clk 0:25:58]}  Kh7 {[%clk 0:19:33]} 42. Qf1 {[%clk 0:22:53]}  Qb3 {[%clk 0:17:18]}
43. Qe2 {[%clk 0:21:52]}  Kg8 {[%clk 0:15:32]} 44. Kh2 {[%clk 0:21:04]}  Kf7 {[%clk 0:15:28]} 45. Kg2 {[%clk 0:21:17]}  Qb4 {[%clk 0:14:50]}
46. Qd3 {[%clk 0:21:24]}  Qb2 {[%clk 0:13:52]} 47. Kg1 {[%clk 0:20:01]}  Kf8 {[%clk 0:12:04]} 48. Kg2 {[%clk 0:19:59]}  Bh4 {[%clk 0:11:27]}
49. f4 {[%clk 0:17:15]}  Be7 {[%clk 0:11:29]} 50. Kg1 {[%clk 0:17:19]}  Kf7 {[%clk 0:10:52]} 51. Kg2 {[%clk 0:17:13]}  Qb4 {[%clk 0:10:17]}
52. Kg1 {[%clk 0:15:14]}  Kf8 {[%clk 0:10:35]} 53. Kg2 {[%clk 0:15:31]}  Qa4 {[%clk 0:08:48]} 54. Kg1 {[%clk 0:15:04]}  Qa1+ {[%clk 0:08:27]}
55. Kg2 {[%clk 0:15:03]}  Qa4 {[%clk 0:08:33]} 56. Kg1 {[%clk 0:15:21]}  Qa8 {[%clk 0:08:52]} 57. Qe2 {[%clk 0:13:18]}  Qe8 {[%clk 0:09:16]}
58. Kf1 {[%clk 0:12:38]}  g6 {[%clk 0:09:28]} 59. hxg6 {[%clk 0:13:02]}  Qxg6 {[%clk 0:09:57]} 60. Qf3 {[%clk 0:11:19]}  Kf7 {[%clk 0:09:58]}
61. Qh3 {[%clk 0:09:15]}  h5 {[%clk 0:09:44]} 62. Qg2 {[%clk 0:08:22]}  Qh6 {[%clk 0:08:39]} 63. Qh3 {[%clk 0:07:37]}  Qh8 {[%clk 0:08:06]}
64. Kg2 {[%clk 0:07:30]}  Qg8+ {[%clk 0:06:18]} 65. Kh2 {[%clk 0:07:30]}  Qh8 {[%clk 0:04:55]} 66. f3 {[%clk 0:07:08]}  Kg6 {[%clk 0:04:30]}
67. Bf2 {[%clk 0:07:08]}  Qd8 {[%clk 0:04:36]} 68. Kg2 {[%clk 0:07:05]}  Kh6 {[%clk 0:03:44]} 69. Kh2 {[%clk 0:06:59]}  Kg6 {[%clk 0:03:39]}
70. Kg2 {[%clk 0:07:23]}  Qc8 {[%clk 0:03:06]} 71. Bh4 {[%clk 0:04:27]}  Qc2+ {[%clk 0:03:32]} 72. Kg1 {[%clk 0:04:43]}  Qd1+ {[%clk 0:03:51]}
73. Kg2 {[%clk 0:05:08]}  Qe2+ {[%clk 0:03:56]} 74. Kg1 {[%clk 0:05:21]}  Qd1+ {[%clk 0:01:54]} 75. Kg2 {[%clk 0:05:45]}  Qd2+ {[%clk 0:02:01]}
76. Kf1 {[%clk 0:05:59]}  Qb4 {[%clk 0:01:23]} 77. Qg3+ {[%clk 0:05:17]}  Kh7 {[%clk 0:01:10]} 78. Bxe7 {[%clk 0:05:23]}  Qxe7 {[%clk 0:01:39]}
79. Kg2 {[%clk 0:04:51]}  Qd8 {[%clk 0:00:33]} 80. Qg5 {[%clk 0:04:43]}  Qxg5+ {[%clk 0:00:43]} 81. fxg5 {[%clk 0:05:09]}  f4 {[%clk 0:00:47]}
82. Kh3 {[%clk 0:05:34]}  Kg7 {[%clk 0:01:11]} 83. Kg2 {[%clk 0:05:36]}  Kg6 {[%clk 0:01:36]} 84. Kh3 {[%clk 0:06:02]}  Kxg5 {[%clk 0:02:00]}
85. Kg2 {[%clk 0:06:28]}  h4 {[%clk 0:02:09]} 86. Kh2 {[%clk 0:06:47]}  h3 {[%clk 0:02:36]} 87. Kxh3 {[%clk 0:07:11]}  Kh5 {[%clk 0:03:03]}
88. Kg2 {[%clk 0:07:34]} 1/2-1/2

[Event "Irish Championship 2026"]
[Site "Talbot Hotel Stillorgan, Co.Dublin, IE"]
[Date "2026.08.06"]
[Round "6"]
[White "Barnes, Oliver"]
[Black "Hughes, Padraig"]
[Result "1-0"]
[Board "69"]
[TimeControl "40/5400+30:1800+30"]
[WhiteFideId "2517604"]
[BlackFideId "2505690"]
[WhiteElo "2107"]
[BlackElo "2022"]
[WhiteClock "0:02:20"]
[BlackClock "0:00:37"]
[Variant "Standard"]
[EndDate "2026.08.06"]
[EndTime "17:48:13"]

1. Nf3 {[%clk 1:30:58]}  Nf6 {[%clk 1:30:53]} 2. c4 {[%clk 1:31:24]}  g6 {[%clk 1:31:18]} 3. g3 {[%clk 1:31:10]}  Bg7 {[%clk 1:31:42]}
4. Bg2 {[%clk 1:31:36]}  O-O {[%clk 1:32:04]} 5. O-O {[%clk 1:31:20]}  d6 {[%clk 1:32:27]} 6. Nc3 {[%clk 1:31:45]}  c6 {[%clk 1:32:23]}
7. d3 {[%clk 1:19:32]}  e5 {[%clk 1:32:40]} 8. Rb1 {[%clk 1:14:48]}  a5 {[%clk 1:33:03]} 9. a3 {[%clk 1:14:36]}  Re8 {[%clk 1:29:42]}
10. b4 {[%clk 1:08:23]}  axb4 {[%clk 1:29:42]} 11. axb4 {[%clk 1:08:44]}  d5 {[%clk 1:27:26]} 12. Nd2 {[%clk 0:41:26]}  Na6 {[%clk 1:21:16]}
13. Qc2 {[%clk 0:35:49]}  Qe7 {[%clk 1:13:45]} 14. b5 {[%clk 0:33:14]}  Nc7 {[%clk 1:02:40]} 15. b6 {[%clk 0:28:47]}  Na6 {[%clk 0:58:50]}
16. cxd5 {[%clk 0:27:45]}  Nb4 {[%clk 0:58:52]} 17. Qb3 {[%clk 0:27:31]}  Nbxd5 {[%clk 0:57:50]} 18. Nxd5 {[%clk 0:25:11]}  Nxd5 {[%clk 0:54:57]}
19. Bxd5 {[%clk 0:23:58]}  cxd5 {[%clk 0:55:21]} 20. Qxd5 {[%clk 0:24:26]}  Be6 {[%clk 0:55:01]} 21. Qb5 {[%clk 0:23:40]}  Rec8 {[%clk 0:50:18]}
22. Nc4 {[%clk 0:17:58]}  e4 {[%clk 0:45:44]} 23. Bf4 {[%clk 0:16:01]}  exd3 {[%clk 0:43:58]} 24. exd3 {[%clk 0:16:30]}  Rd8 {[%clk 0:39:24]}
25. Ne3 {[%clk 0:14:43]}  Ra3 {[%clk 0:24:06]} 26. Rfd1 {[%clk 0:13:08]}  Bd7 {[%clk 0:21:54]} 27. Qb4 {[%clk 0:09:36]}  Qxb4 {[%clk 0:22:14]}
28. Rxb4 {[%clk 0:10:04]}  Bc6 {[%clk 0:21:12]} 29. d4 {[%clk 0:08:30]}  Bf3 {[%clk 0:21:35]} 30. Rc1 {[%clk 0:08:54]}  Rd3 {[%clk 0:10:44]}
31. d5 {[%clk 0:08:57]}  Bd4 {[%clk 0:11:00]} 32. d6 {[%clk 0:07:57]}  f6 {[%clk 0:07:28]} 33. h4 {[%clk 0:06:04]}  Bxe3 {[%clk 0:04:36]}
34. fxe3 {[%clk 0:06:04]}  Rd2 {[%clk 0:05:02]} 35. Rbc4 {[%clk 0:04:09]}  Bc6 {[%clk 0:01:16]} 36. Rd4 {[%clk 0:01:38]}  Rg2+ {[%clk 0:00:39]}
37. Kf1 {[%clk 0:02:08]}  Rb2 {[%clk 0:00:50]} 38. Rxc6 {[%clk 0:01:46]}  bxc6 {[%clk 0:01:14]} 39. d7 {[%clk 0:02:08]}  Kf7 {[%clk 0:00:37]}
40. Bc7 {[%clk 0:02:20]}  c5 {[%clk 0:30:30]} 1-0

[Event "Irish Championship 2026"]
[Site "Talbot Hotel Stillorgan, Co.Dublin, IE"]
[Date "2026.08.06"]
[Round "6"]
[White "Bartczak, Korneliusz"]
[Black "Paibir, Atharva"]
[Result "1/2-1/2"]
[Board "70"]
[TimeControl "40/5400+30:1800+30"]
[WhiteFideId "2523558"]
[BlackFideId "2512882"]
[WhiteElo "2062"]
[BlackElo "2067"]
[WhiteClock "0:20:05"]
[BlackClock "0:25:22"]
[Variant "Standard"]
[EndDate "2026.08.06"]
[EndTime "16:49:38"]

1. e4 {[%clk 1:30:57]}  c5 {[%clk 1:30:40]} 2. Nf3 {[%clk 1:31:18]}  e6 {[%clk 1:31:05]} 3. c3 {[%clk 1:28:12]}  d5 {[%clk 1:30:29]}
4. exd5 {[%clk 1:27:43]}  exd5 {[%clk 1:30:51]} 5. d4 {[%clk 1:27:27]}  Nf6 {[%clk 1:31:13]} 6. Bb5+ {[%clk 1:26:11]}  Bd7 {[%clk 1:26:36]}
7. Bxd7+ {[%clk 1:25:54]}  Nbxd7 {[%clk 1:25:38]} 8. O-O {[%clk 1:24:21]}  Be7 {[%clk 1:25:38]} 9. dxc5 {[%clk 1:21:25]}  Nxc5 {[%clk 1:25:14]}
10. Be3 {[%clk 1:20:40]}  O-O {[%clk 1:24:42]} 11. Nbd2 {[%clk 1:18:18]}  Re8 {[%clk 1:19:36]} 12. Qc2 {[%clk 1:14:31]}  Qc7 {[%clk 1:17:28]}
13. h3 {[%clk 1:10:26]}  Rad8 {[%clk 1:12:51]} 14. Rfe1 {[%clk 1:04:35]}  a6 {[%clk 1:00:23]} 15. Bd4 {[%clk 0:56:28]}  Nfe4 {[%clk 0:51:38]}
16. Bxc5 {[%clk 0:42:15]}  Nxc5 {[%clk 0:51:58]} 17. Nd4 {[%clk 0:37:54]}  Bf6 {[%clk 0:51:04]} 18. N4b3 {[%clk 0:34:45]}  g6 {[%clk 0:42:29]}
19. Nxc5 {[%clk 0:32:30]}  Qxc5 {[%clk 0:36:27]} 20. Qd3 {[%clk 0:26:04]}  Rxe1+ {[%clk 0:29:27]} 21. Rxe1 {[%clk 0:26:32]}  b5 {[%clk 0:29:49]}
22. a3 {[%clk 0:25:02]}  Kg7 {[%clk 0:28:28]} 23. Rd1 {[%clk 0:20:05]}  h5 {[%clk 0:25:22]} 1/2-1/2